lending/lending_fUSD_20241229
["ID","MTS","AMOUNT","RATE_DAILY","PERIOD"]
[347066245,1735488672822,-1928.1,0.00012362,2]
[347066246,1735488672831,-500.0,0.00012362,2]
[347066247,1735488672841,-841.82,0.00012362,2]
[347066248,1735488672850,-151.0,0.00012362,2]
[347066249,1735488672860,-500.0,0.00012362,2]
[347066250,1735488672869,-2218.33,0.00012362,2]
[347066251,1735488672879,-642.09,0.00012362,2]
[347066252,1735488672888,-151.0,0.00012362,2]
[347066253,1735488672897,-500.0,0.00012362,2]
[347066254,1735488672906,-500.0,0.00012362,2]
[347066255,1735488672915,-500.0,0.00012362,2]
[347066256,1735488672925,-1534.75,0.00012362,2]
[347066257,1735488672934,-1158.55,0.00012362,2]
[347066258,1735488672943,-570.63,0.00012362,2]
[347066259,1735488672952,-500.0,0.00012362,2]
[347066260,1735488672962,-929.29,0.00012362,2]
[347066261,1735488672971,-633.95590153,0.00012362,2]
[347066262,1735488672979,-2726.97,0.00012362,2]
[347066263,1735488672988,-500.0,0.00012362,2]
[347066264,1735488672998,-500.0,0.00012362,2]
[347066265,1735488673008,-500.0,0.00012362,2]
[347066266,1735488673017,-151.0,0.00012362,2]
[347066267,1735488673027,-500.0,0.00012362,2]
[347066268,1735488673036,-949.81,0.00012362,2]
[347066269,1735488673045,-500.0,0.00012362,2]
[347066270,1735488673055,-500.0,0.00012362,2]
[347066271,1735488673064,-1011.72,0.00012362,2]
[347066272,1735488673074,-4370.35,0.00012362,2]
[347066273,1735488673083,-500.0,0.00012362,2]
[347066274,1735488673092,-500.0,0.00012362,2]
[347066275,1735488673102,-736.12,0.00012362,2]
[347066276,1735488673111,-500.0,0.00012362,2]
[347066277,1735488673121,-1065.4,0.00012362,2]
[347066278,1735488673130,-500.0,0.00012362,2]
[347066279,1735488673139,-500.0,0.00012362,2]
[347066280,1735488673149,-1365.28,0.00012362,2]
[347066281,1735488673159,-1375.08,0.00012362,2]
[347066282,1735488673168,-500.0,0.00012362,2]
[347066283,1735488673178,-500.0,0.00012362,2]
[347066284,1735488673187,-4162.07,0.00012362,2]
[347066285,1735488673197,-500.0,0.00012362,2]
[347066286,1735488673206,-1380.91,0.00012362,2]
[347066287,1735488673215,-940.76,0.00012362,2]
[347066288,1735488673225,-500.0,0.00012362,2]
[347066289,1735488673234,-500.0,0.00012362,2]
[347066290,1735488673243,-500.0,0.00012362,2]
[347066291,1735488673253,-977.28,0.00012362,2]
[347066292,1735488673263,-500.0,0.00012362,7]
[347066293,1735488673273,-904.8,0.00012362,2]
[347066294,1735488673282,-500.0,0.00012362,2]
[347066295,1735488673292,-990.61,0.00012362,2]
[347066296,1735488673302,-500.0,0.00012362,2]
[347066297,1735488673311,-1419.58,0.00012362,2]
[347066298,1735488673320,-1938.49,0.00012362,2]
[347066299,1735488673330,-500.0,0.00012362,2]
[347066300,1735488673339,-2962.12,0.00012362,2]
[347066301,1735488673348,-868.85,0.00012362,2]
[347066302,1735488673363,-1801.73,0.00012362,2]
[347066303,1735488673372,-151.0,0.00012362,2]
[347066304,1735488673381,-235.4849628,0.00012362,2]
[347066305,1735488673390,-1026.56,0.00012362,2]
[347066306,1735488673401,-1138.52,0.00012362,2]
[347066307,1735488673410,-1296.51,0.00012362,2]
[347066308,1735488673419,-7123.99,0.00012362,2]
[347066309,1735488673429,-1330.77,0.00012362,2]
[347066310,1735488673439,-1125.38,0.00012362,2]
[347066311,1735488673448,-500.0,0.00012362,2]
[347066312,1735488673457,-956.19,0.00012362,2]
[347066313,1735488673466,-614.873596,0.00012362,2]
[347066314,1735488673475,-760.51,0.00012362,2]
[347066315,1735488673484,-2537.98,0.00012362,2]
[347066316,1735488673493,-614.873596,0.00012362,2]
[347066317,1735488673502,-48.18684075,0.00012362,2]
[347066318,1735488673521,-451.81315925,0.00012362,2]
[347066319,1735488673530,-48.20049035,0.00012362,2]
[347066320,1735488673542,-680.90665295,0.00012362,2]
[347066321,1735488673554,-463.7828567,0.00012362,2]
[347066322,1735488673563,-146.5671433,0.00012362,2]
[347066323,1735488673575,-324.86543508,0.00012362,2]
[347066324,1735488673771,-28.56742162,0.00012362,2]
[347066325,1735488673781,-1296.82,0.00012362,2]
[347066326,1735488673790,-7991.07747204,0.00012362,2]
[347066327,1735488673801,-4709.3,0.00012362,2]
[347066328,1735488674551,-987.01,0.00011539,2]
[347066329,1735488674580,-2908.26112629,0.00011539,2]
[347066330,1735488674592,-571.63887371,0.00011539,2]
[347066331,1735488674602,-500.0,0.00011539,2]
[347066332,1735488674612,-500.0,0.00011539,2]
[347066333,1735488674621,-500.0,0.00011539,2]
[347066334,1735488674631,-500.0,0.0001154,2]
[347066335,1735488674641,-4466.91,0.00011813,2]
[347066336,1735488674651,-500.0,0.00011813,2]
[347066337,1735488674660,-500.0,0.00011813,2]
[347066338,1735488674669,-500.0,0.00011813,2]
[347066339,1735488674680,-500.0,0.00011814,2]
[347066340,1735488674689,-4466.91,0.00012087,2]
[347066341,1735488674699,-500.0,0.00012087,2]
[347066342,1735488674709,-500.0,0.00012088,2]
[347066343,1735488674719,-4466.91,0.00012361,2]
[347066344,1735488674729,-500.0,0.00012361,2]
[347066345,1735488674739,-3753.34252796,0.00012362,2]
[347066346,1735488674749,-500.0,0.00012362,2]
[347066347,1735488674760,-589.52,0.00012362,2]
[347066348,1735488674769,-500.0,0.00012362,2]
[347066349,1735488674779,-500.0,0.00012362,2]
[347066350,1735488674788,-1883.51,0.00012362,2]
[347066351,1735488674798,-500.0,0.00012362,2]
[347066352,1735488674807,-500.0,0.00012362,2]
[347066353,1735488674817,-1568.93,0.00012362,2]
[347066354,1735488674826,-500.0,0.00012362,2]
[347066355,1735488675017,-12322.36,0.00012362,2]
[347066356,1735488675027,-631.77,0.00012362,2]
[347066357,1735488675037,-500.0,0.00012362,2]
[347066358,1735488675047,-2211.52,0.00012362,2]
[347066359,1735488675056,-500.0,0.00012362,2]
[347066360,1735488675066,-1338.22,0.00012362,2]
[347066361,1735488675076,-1245.55,0.00012362,2]
[347066362,1735488675086,-1945.96,0.00012362,2]
[347066363,1735488675095,-500.0,0.00012362,2]
[347066364,1735488675105,-500.0,0.00012362,2]
[347066365,1735488675115,-599.95,0.00012362,2]
[347066366,1735488675124,-1494.68,0.00012362,2]
[347066367,1735488675133,-1286.36,0.00012362,2]
[347066368,1735488675143,-884.33,0.00012362,2]
[347066369,1735488675152,-4720.21,0.00012362,2]
[347066370,1735488675162,-813.82,0.00012362,2]
[347066371,1735488675172,-1514.65,0.00012362,2]
[347066372,1735488675182,-500.0,0.00012362,2]
[347066373,1735488675192,-500.0,0.00012362,2]
[347066374,1735488675202,-500.0,0.00012362,2]
[347066375,1735488675212,-500.0,0.00012362,2]
[347066376,1735488675222,-151.0,0.00012362,2]
[347066377,1735488675232,-1312.16,0.00012362,2]
[347066378,1735488675242,-500.0,0.00012362,2]
[347066379,1735488675251,-500.0,0.00012362,2]
[347066380,1735488675262,-151.0,0.00012362,2]
[347066381,1735488675271,-856.59,0.00012362,2]
[347066382,1735488675281,-755.56,0.00012362,2]
[347066383,1735488675292,-816.723256,0.00012362,2]
[347066384,1735488675302,-500.0,0.00012362,2]
[347066385,1735488675311,-500.0,0.00012362,2]
[347066386,1735488675321,-816.723256,0.00012362,2]
[347066387,1735488675331,-1031.25,0.00012362,2]
[347066388,1735488675341,-1132.32,0.00012362,2]
[347066389,1735488675351,-500.0,0.00012362,2]
[347066390,1735488675363,-2892.2,0.00012362,2]
[347066391,1735488675374,-500.0,0.00012362,2]
[347066392,1735488675384,-3179.41,0.00012362,2]
[347066393,1735488675394,-500.0,0.00012362,2]
[347066394,1735488675404,-500.0,0.00012362,2]
[347066395,1735488675414,-1006.65,0.00012362,2]
[347066396,1735488675423,-3179.41,0.00012362,2]
[347066397,1735488675433,-151.0,0.00012362,2]
[347066398,1735488675444,-1043.5,0.00012362,2]
[347066399,1735488675454,-846.6,0.00012362,2]
[347066400,1735488675463,-596.79,0.00012362,2]
[347066401,1735488675473,-1218.9,0.00012362,2]
[347066402,1735488675483,-270.153869,0.00012362,2]
[347066403,1735488675493,-4313.36,0.00012362,2]
[347066404,1735488675504,-1167.72,0.00012362,2]
[347066405,1735488675514,-523.66,0.00012362,2]
[347066406,1735488675524,-151.0,0.00012362,2]
[347066407,1735488675533,-151.0,0.00012362,2]
[347066408,1735488675542,-151.0,0.00012362,2]
[347066409,1735488675552,-500.0,0.00012362,2]
[347066410,1735488675561,-844.57,0.00012362,2]
[347066411,1735488675571,-1387.32,0.00012362,2]
[347066412,1735488675581,-879.92,0.00012362,2]
[347066413,1735488675590,-500.0,0.00012362,2]
[347066414,1735488675599,-1093.37,0.00012362,2]
[347066415,1735488675609,-3858.79,0.00012362,2]
[347066416,1735488675618,-500.0,0.00012362,2]
[347066417,1735488675628,-500.0,0.00012362,2]
[347066418,1735488675637,-500.0,0.00012362,2]
[347066419,1735488675647,-194.979129,0.00012362,2]
[347066420,1735488675656,-993.82,0.00012362,2]
[347066421,1735488675666,-194.979129,0.00012362,2]
[347066422,1735488675675,-3972.17,0.00012362,2]
[347066423,1735488675685,-151.0,0.00012362,2]
[347066424,1735488675694,-500.0,0.00012362,2]
[347066425,1735488675703,-500.0,0.00012362,2]
[347066426,1735488675712,-2566.95,0.00012362,2]
[347066427,1735488675722,-1252.75,0.00012362,2]
[347066428,1735488675731,-791.89,0.00012362,2]
[347066429,1735488675741,-2260.4,0.00012362,2]
[347066430,1735488675750,-659.53,0.00012362,2]
[347066431,1735488675761,-2860.56,0.00012362,2]
[347066432,1735488675770,-500.0,0.00012362,2]
[347066433,1735488675779,-244.756921,0.00012362,2]
[347066434,1735488675789,-500.0,0.00012362,2]
[347066435,1735488675799,-186.043191,0.00012362,2]
[347066436,1735488675810,-244.756921,0.00012362,2]
[347066437,1735488675820,-500.0,0.00012362,2]
[347066438,1735488675830,-500.0,0.00012362,2]
[347066439,1735488675839,-680.27,0.00012362,2]
[347066440,1735488675849,-20853.52,0.00012362,2]
[347066441,1735488675858,-1160.57,0.00012362,2]
[347066442,1735488675868,-500.0,0.00012362,2]
[347066443,1735488675878,-939.31,0.00012362,2]
[347066444,1735488675888,-667.93,0.00012362,2]
[347066445,1735488675897,-1078.56,0.00012362,2]
[347066446,1735488675907,-500.0,0.00012362,2]
[347066447,1735488675917,-500.0,0.00012362,2]
[347066448,1735488675927,-151.0,0.00012363,2]
[347066449,1735488675936,-241.425524,0.00012363,2]
[347066450,1735488675946,-151.0,0.00012363,2]
[347066451,1735488675956,-151.0,0.00012363,2]
[347066452,1735488675966,-210.436782,0.00012363,2]
[347066453,1735488675975,-151.0,0.00012363,2]
[347066454,1735488675985,-236.829093,0.00012363,2]
[347066455,1735488675994,-151.0,0.00012363,2]
[347066456,1735488676004,-151.0,0.00012363,2]
[347066457,1735488676015,-151.0,0.00012363,2]
[347066458,1735488676025,-151.0,0.00012363,2]
[347066459,1735488676035,-151.0,0.00012363,2]
[347066460,1735488676045,-316.777692,0.00012363,2]
[347066461,1735488676055,-316.777692,0.00012363,2]
[347066462,1735488676064,-205.198694,0.00012363,2]
[347066463,1735488676075,-152.03513,0.00012363,2]
[347066464,1735488676085,-151.0,0.00012363,2]
[347066465,1735488676094,-151.0,0.00012363,2]
[347066466,1735488676104,-500.0,0.00012363,2]
[347066467,1735488676114,-612.73,0.00012363,2]
[347066468,1735488676123,-151.0,0.00012363,2]
[347066469,1735488676132,-151.0,0.00012363,2]
[347066470,1735488676142,-151.0,0.00012363,2]
[347066471,1735488676151,-500.0,0.00012363,2]
[347066472,1735488676161,-500.0,0.00012363,2]
[347066473,1735488676170,-806.46,0.00012363,2]
[347066474,1735488676179,-807.83,0.00012363,2]
[347066475,1735488676188,-500.0,0.00012363,2]
[347066476,1735488676207,-500.0,0.00012363,2]
[347066477,1735488676224,-375.677861,0.00012363,2]
[347066478,1735488676243,-500.0,0.00012363,2]
[347066479,1735488676262,-375.677861,0.00012363,2]
[347066480,1735488676277,-680.32,0.00012363,2]
[347066481,1735488676295,-588.57,0.00012363,2]
[347066482,1735488676313,-1041.75,0.00012363,2]
[347066483,1735488676332,-151.0,0.00012363,2]
[347066484,1735488676351,-151.0,0.00012363,2]
[347066485,1735488676373,-381.834246,0.00012363,2]
[347066486,1735488676391,-500.0,0.00012363,2]
[347066487,1735488676408,-151.0,0.00012363,2]
[347066488,1735488676421,-381.834246,0.00012363,2]
[347066489,1735488676440,-500.0,0.00012363,2]
[347066490,1735488676453,-570.09,0.00012363,2]
[347066491,1735488676468,-500.0,0.00012363,2]
[347066492,1735488676483,-500.0,0.00012363,2]
[347066493,1735488676496,-500.0,0.00012363,2]
[347066494,1735488676511,-500.0,0.00012363,2]
[347066495,1735488676530,-500.0,0.00012363,2]
[347066496,1735488676544,-500.0,0.00012363,2]
[347066497,1735488676558,-500.0,0.00012363,2]
[347066498,1735488676572,-1189.93,0.00012363,2]
[347066499,1735488676587,-500.0,0.00012363,2]
[347066500,1735488676601,-500.0,0.00012363,2]
[347066501,1735488676616,-162.944486,0.00012363,2]
[347066502,1735488676630,-151.0,0.00012363,2]
[347066503,1735488676644,-151.0,0.00012363,2]
[347066504,1735488676659,-500.0,0.00012363,2]
[347066505,1735488676673,-2685.25,0.00012363,2]
[347066506,1735488676687,-2041.89,0.00012363,2]
[347066507,1735488676701,-151.0,0.00012363,2]
[347066508,1735488676715,-311.819869,0.00012363,2]
[347066509,1735488676729,-311.819869,0.00012363,2]
[347066510,1735488676743,-2859.65,0.00012363,2]
[347066511,1735488676758,-2601.0,0.00012363,2]
[347066512,1735488676772,-151.0,0.00012363,2]
[347066513,1735488676788,-412.542015,0.00012363,2]
[347066514,1735488676802,-412.542015,0.00012363,2]
[347066515,1735488676817,-609.27,0.00012363,2]
[347066516,1735488676831,-177.610544,0.00012363,2]
[347066517,1735488676846,-177.610544,0.00012363,2]
[347066518,1735488676860,-778.28,0.00012363,2]
[347066519,1735488676875,-760.94,0.00012363,2]
[347066520,1735488676890,-500.0,0.00012363,2]
[347066521,1735488676904,-500.0,0.00012363,2]
[347066522,1735488676918,-1602.17,0.00012363,2]
[347066523,1735488676934,-151.0,0.00012363,2]
[347066524,1735488676948,-500.0,0.00012363,2]
[347066525,1735488676967,-500.0,0.00012363,2]
[347066526,1735488676983,-151.0,0.00012363,2]
[347066527,1735488676998,-1375.01,0.00012363,2]
[347066528,1735488677013,-500.0,0.00012363,2]
[347066529,1735488677029,-153.072631,0.00012363,2]
[347066530,1735488677044,-1563.81,0.00012363,2]
[347066531,1735488677058,-1229.03,0.00012363,2]
[347066532,1735488677073,-1220.45,0.00012363,2]
[347066533,1735488677088,-503.38,0.00012363,2]
[347066534,1735488677103,-1959.42,0.00012363,2]
[347066535,1735488677119,-1265.12,0.00012363,2]
[347066536,1735488677134,-151.0,0.00012363,2]
[347066537,1735488677149,-1619.77,0.00012363,2]
[347066538,1735488677164,-1534.41,0.00012363,2]
[347066539,1735488677179,-614.873596,0.00012363,2]
[347066540,1735488677194,-133.24722447,0.00012363,2]
[347066541,1735488677233,-366.75277553,0.00012363,2]
[347066542,1735488677248,-2257.38,0.00012363,2]
[347066543,1735488677262,-614.873596,0.00012363,2]
[347066544,1735488677278,-863.34,0.00012363,2]
[347066545,1735488677293,-500.0,0.00012363,2]
[347066546,1735488677308,-939.4,0.00012363,2]
[347066547,1735488677323,-1641.25,0.00012363,2]
[347066548,1735488677336,-1217.00362887,0.00012363,2]
[347066549,1735488677356,-967.018,0.00012363,2]
[347066550,1735488677388,-500.0,0.00012087,2]
[347066551,1735488677403,-362.42837113,0.00012363,2]
[347066552,1735488677413,-1493.68,0.00012363,2]
[347066553,1735488677423,-1070.6,0.00012363,2]
[347066554,1735488677433,-1502.96,0.00012363,2]
[347066555,1735488677443,-1094.31,0.00012363,2]
[347066556,1735488677452,-3023.89,0.00012363,2]
[347066557,1735488677462,-3179.41,0.00012363,2]
[347066558,1735488677472,-151.0,0.00012363,2]
[347066559,1735488677481,-1386.63,0.00012363,2]
[347066560,1735488677491,-153.802906,0.00012363,2]
[347066561,1735488677500,-2781.53,0.00012363,2]
[347066562,1735488677511,-6179.01,0.00012363,2]
[347066563,1735488677522,-14980.95,0.00012363,2]
[347066564,1735488677532,-847.97,0.00012363,2]
[347066565,1735488677541,-194.979129,0.00012363,2]
[347066566,1735488677551,-194.979129,0.00012363,2]
[347066567,1735488677562,-500.0,0.00012363,2]
[347066568,1735488677571,-1024.09,0.00012363,2]
[347066569,1735488677580,-2232.62,0.00012363,2]
[347066570,1735488677590,-1358.98,0.00012363,2]
[347066571,1735488677599,-592.62,0.00012363,2]
[347066572,1735488677609,-1681.75,0.00012363,2]
[347066573,1735488677619,-500.0,0.00012363,2]
[347066574,1735488677628,-4981.6,0.00012363,2]
[347066575,1735488677638,-807.67,0.00012363,2]
[347066576,1735488677649,-1046.52,0.00012363,2]
[347066577,1735488677660,-4514.93,0.00012363,2]
[347066578,1735488677670,-500.0,0.00012363,2]
[347066579,1735488677680,-933.75,0.00012363,2]
[347066580,1735488677690,-151.0,0.00012364,2]
[347066581,1735488677699,-151.0,0.00012364,2]
[347066582,1735488677710,-151.0,0.00012364,2]
[347066583,1735488677720,-151.74665,0.00012364,2]
[347066584,1735488677729,-316.777692,0.00012364,2]
[347066585,1735488678148,-316.777692,0.00012364,2]
[347066586,1735488678178,-151.0,0.00012364,2]
[347066587,1735488678192,-151.0,0.00012364,2]
[347066588,1735488678202,-151.0,0.00012364,2]
[347066589,1735488678211,-184.948162,0.00012364,2]
[347066590,1735488678221,-3139.45,0.00012364,2]
[347066591,1735488678230,-2719.05469442,0.00012364,2]
[347066592,1735488678242,-2697.17970122,0.00012364,2]
[347066593,1735488678261,-2468.51560436,0.00012364,2]
[347066594,1735488678271,-364.80439564,0.00012364,2]
[347066595,1735488678282,-1330.16560436,0.00012364,2]
[347066596,1735488678291,-856.72,0.00012364,2]
[347066597,1735488678300,-1449.34,0.00012364,2]
[347066598,1735488678310,-3251.43,0.00012364,2]
[347066599,1735488678319,-3482.19,0.00012364,2]
[347066600,1735488678329,-2863.49,0.00012364,2]
[347066601,1735488678339,-2749.96,0.00012364,2]
[347066602,1735488678349,-4234.44,0.00012364,2]
[347066603,1735488678362,-3861.49518714,0.00012364,2]
[347066604,1735488678374,-288.56481286,0.00012364,2]
[347066605,1735488678384,-4295.71087704,0.00012364,2]
[347066606,1735488678399,-834.44912296,0.00012364,2]
[347066607,1735488678408,-329.95119205,0.00012364,2]
[347066608,1735488678419,-7226.09880795,0.00012364,2]
[347066609,1735488678428,-55266.26,0.00012364,2]
[347066610,1735488678438,-3179.41,0.00012364,2]
[347066611,1735488678447,-5328.68,0.00012364,2]
[347066612,1735488678457,-2880.48,0.00012364,2]
[347066613,1735488678466,-151.0,0.00012365,2]
[347066614,1735488678475,-200.157393,0.00012365,2]
[347066615,1735488678485,-151.0,0.00012365,2]
[347066616,1735488678494,-151.0,0.00012365,2]
[347066617,1735488678503,-151.0,0.00012365,2]
[347066618,1735488678513,-151.0,0.00012365,2]
[347066619,1735488678522,-151.0,0.00012365,2]
[347066620,1735488678531,-4225.23,0.00012365,2]
[347066621,1735488678541,-29420.45,0.00012365,2]
[347066622,1735488678550,-181.041641,0.00012365,2]
[347066623,1735488678560,-201.005028,0.00012365,2]
[347066624,1735488678569,-985.15,0.00012365,2]
[347066625,1735488678579,-2924.63,0.00012365,2]
[347066626,1735488678590,-375.677861,0.00012365,2]
[347066627,1735488678599,-375.677861,0.00012365,2]
[347066628,1735488678608,-1925.79,0.00012365,2]
[347066629,1735488678618,-6486.92,0.00012365,2]
[347066630,1735488678627,-1461.06,0.00012365,2]
[347066631,1735488678637,-753.02,0.00012365,2]
[347066632,1735488678646,-1807.43,0.00012365,2]
[347066633,1735488678656,-2186.42,0.00012365,2]
[347066634,1735488678665,-1438.17,0.00012365,2]
[347066635,1735488678675,-5726.34,0.00012365,2]
[347066636,1735488678685,-5237.26,0.00012365,2]
[347066637,1735488678695,-151.0,0.00012365,2]
[347066638,1735488678705,-151.0,0.00012365,2]
[347066639,1735488678715,-816.723256,0.00012365,2]
[347066640,1735488678724,-816.723256,0.00012365,2]
[347066641,1735488678734,-151.0,0.00012365,2]
[347066642,1735488678743,-223.81638,0.00012365,2]
[347066643,1735488678754,-152.020157,0.00012365,2]
[347066644,1735488678763,-244.756921,0.00012365,2]
[347066645,1735488678774,-244.756921,0.00012365,2]
[347066646,1735488678784,-151.0,0.00012366,2]
[347066647,1735488678794,-274.338183,0.00012366,2]
[347066648,1735488678803,-151.793674,0.00012366,2]
[347066649,1735488678812,-151.0,0.00012366,2]
[347066650,1735488678822,-381.834246,0.00012366,2]
[347066651,1735488678833,-165.286606,0.00012366,2]
[347066652,1735488678844,-381.834246,0.00012366,2]
[347066653,1735488678854,-151.0,0.00012366,2]
[347066654,1735488678864,-247.402947,0.00012366,2]
[347066655,1735488678875,-3179.41,0.00012366,2]
[347066656,1735488678886,-151.0,0.00012367,2]
[347066657,1735488678897,-151.0,0.00012367,2]
[347066658,1735488678907,-2860.56,0.0001239,2]
[347066659,1735488678918,-13349.82973138,0.00012399,2]
[347066660,1735488678928,-13349.82973131,0.00012399,2]
[347066661,1735488678939,-13349.82973131,0.00012399,2]
[347066662,1735488678950,-13349.82973131,0.00012399,2]
[347066663,1735488678961,-13349.82973131,0.00012399,2]
[347066664,1735488678973,-13349.82973131,0.00012399,2]
[347066665,1735488678984,-13349.82973131,0.00012399,2]
[347066666,1735488678996,-13349.82973131,0.00012399,2]
[347066667,1735488679007,-13349.82973131,0.00012399,2]
[347066668,1735488679022,-13349.82973131,0.00012399,2]
[347066669,1735488679033,-151.0,0.00012399,2]
[347066670,1735488679044,-316.777692,0.00012399,2]
[347066671,1735488679054,-316.777692,0.00012399,2]
[347066672,1735488679065,-173.855157,0.00012399,2]
[347066673,1735488679075,-151.0,0.00012399,2]
[347066674,1735488679086,-151.0,0.00012399,2]
[347066675,1735488679098,-151.0,0.00012399,2]
[347066676,1735488679108,-311.819869,0.00012399,2]
[347066677,1735488679119,-311.819869,0.00012399,2]
[347066678,1735488679129,-177.610544,0.00012399,2]
[347066679,1735488679139,-177.610544,0.00012399,2]
[347066680,1735488679149,-194.979129,0.00012399,2]
[347066681,1735488679159,-194.979129,0.00012399,2]
[347066682,1735488679169,-150.0,0.00012408,2]
[347066683,1735488679179,-2860.56,0.00012417,2]
[347066684,1735488679189,-2860.56,0.00012444,2]
[347066685,1735488679199,-1171.0,0.00012462,2]
[347066686,1735488679209,-150.0,0.00012462,2]
[347066687,1735488679219,-3889.0,0.00012462,2]
[347066688,1735488679229,-9600.0,0.00012462,2]
[347066689,1735488679239,-1102.0,0.00012462,2]
[347066690,1735488679249,-186.777211,0.0001247,2]
[347066691,1735488679259,-2860.56,0.00012472,2]
[347066692,1735488679271,-736.12,0.00012499,2]
[347066693,1735488679281,-2860.56,0.00012499,2]
[347066694,1735488679290,-165.48061746,0.00012505,2]
[347066695,1735488679300,-2860.56,0.00012527,2]
[347066696,1735488679310,-974.46,0.00012535,2]
[347066697,1735488679320,-5983.38,0.00012535,2]
[347066698,1735488679329,-1288.4,0.00012535,2]
[347066699,1735488679339,-21191.26,0.00012535,2]
[347066700,1735488679348,-5063.29,0.00012535,2]
[347066701,1735488679362,-4516.96,0.00012535,2]
[347066702,1735488679372,-3228.66,0.00012535,2]
[347066703,1735488679383,-8137.93,0.00012535,2]
[347066704,1735488679392,-871.75,0.00012535,2]
[347066705,1735488679403,-1021.23,0.00012535,2]
[347066706,1735488679413,-2178.04,0.00012535,2]
[347066707,1735488679423,-1830.7,0.00012535,2]
[347066708,1735488679433,-885.96,0.00012535,2]
[347066709,1735488679444,-2481.77,0.00012535,2]
[347066710,1735488679454,-2860.56,0.00012554,2]
[347066711,1735488679463,-420.0,0.00012563,2]
[347066712,1735488679472,-2860.56,0.00012581,2]
[347066713,1735488679481,-4024.85,0.00012598,2]
[347066714,1735488679491,-165.146,0.00012598,2]
[347066715,1735488679500,-2860.56,0.00012609,2]
[347066716,1735488679510,-150.0,0.0001263,2]
[347066717,1735488679520,-300.0,0.0001263,2]
[347066718,1735488679530,-300.0,0.0001263,2]
[347066719,1735488679539,-150.0,0.0001263,2]
[347066720,1735488679549,-150.0,0.0001263,2]
[347066721,1735488679559,-150.0,0.0001263,2]
[347066722,1735488679569,-500.0,0.00012635,2]
[347066723,1735488679578,-500.0,0.00012635,2]
[347066724,1735488679588,-500.0,0.00012635,2]
[347066725,1735488679597,-500.0,0.00012635,2]
[347066726,1735488679607,-554.54,0.00012635,2]
[347066727,1735488679616,-563.68,0.00012635,2]
[347066728,1735488679625,-927.1,0.00012635,2]
[347066729,1735488679635,-1089.32,0.00012635,2]
[347066730,1735488679644,-645.44,0.00012635,2]
[347066731,1735488679653,-500.0,0.00012635,2]
[347066732,1735488679664,-500.0,0.00012635,2]
[347066733,1735488679675,-500.0,0.00012635,2]
[347066734,1735488679684,-500.0,0.00012635,2]
[347066735,1735488679694,-1546.9,0.00012635,2]
[347066736,1735488679704,-804.07,0.00012635,2]
[347066737,1735488679713,-516.71,0.00012635,2]
[347066738,1735488679723,-680.27,0.00012635,2]
[347066739,1735488679733,-753.03,0.00012635,2]
[347066740,1735488679742,-500.0,0.00012635,2]
[347066741,1735488679752,-500.0,0.00012635,2]
[347066742,1735488679762,-1145.97,0.00012635,2]
[347066743,1735488679772,-500.0,0.00012635,2]
[347066744,1735488679781,-500.0,0.00012635,2]